bitfinex-derivatives/quotes_BTCF0:USTF0_20260119
["timestamp","ask_amount","ask_price","bid_price","bid_amount"]
[1768829959002,0.00016113,93100.0,93088.0,0.05755076]
[1768829960409,0.010747,93098.0,93088.0,0.05755076]
[1768829962313,0.01090813,93100.0,93088.0,0.05755076]
[1768829963507,0.00016113,93100.0,93088.0,0.05755076]
[1768829964110,0.010747,93099.0,93088.0,0.05755076]
[1768829964312,0.00016113,93100.0,93088.0,0.05755076]
[1768829966016,0.01090813,93100.0,93088.0,0.05755076]
[1768829968314,0.010747,93099.0,93088.0,0.05755076]
[1768829969716,0.00016113,93100.0,93088.0,0.05755076]
[1768829974922,0.00016113,93100.0,93089.0,0.010748]
[1768829975420,0.00016113,93100.0,93090.0,0.010748]
[1768829977311,0.00016113,93100.0,93088.0,0.05755076]
[1768829979029,0.00016113,93100.0,93089.0,0.010748]
[1768829979515,0.00236295,93104.0,93090.0,0.010748]
[1768829979718,0.02230621,93103.0,93090.0,0.07108851]
[1768829979913,0.00236295,93104.0,93091.0,0.010747]
[1768829980218,0.0223064,93103.0,93091.0,0.010747]
[1768829980416,0.00236295,93104.0,93091.0,0.010747]
[1768829980615,0.02230455,93103.0,93091.0,0.010747]
[1768829980817,0.00236295,93104.0,93091.0,0.010747]
[1768829981018,0.02230457,93103.0,93091.0,0.010747]
[1768829981215,0.00236295,93104.0,93091.0,0.010747]
[1768829981416,0.02230346,93103.0,93091.0,0.010747]
[1768829981719,0.00236295,93104.0,93091.0,0.010747]
[1768829981917,0.02230347,93103.0,93090.0,0.07108851]
[1768829982116,0.00236295,93104.0,93090.0,0.07108851]
[1768829983030,0.00236295,93104.0,93090.0,0.010748]
[1768829983512,0.00236295,93104.0,93090.0,0.07120907]
[1768829983717,0.00236295,93104.0,93091.0,0.010747]
[1768829985020,0.00236295,93104.0,93091.0,0.0710726]
[1768829985326,0.010746,93108.0,93091.0,0.0710726]
[1768829985623,0.02230073,93107.0,93091.0,0.0710726]
[1768829985926,0.02230073,93106.0,93091.0,0.0710726]
[1768829986128,0.010746,93108.0,93091.0,0.0710726]
[1768829986129,0.02230073,93105.0,93091.0,0.0710726]
[1768829986332,0.02230073,93104.0,93091.0,0.010747]
[1768829986527,0.010746,93108.0,93091.0,0.010747]
[1768829986721,0.0222002,93107.0,93091.0,0.010747]
[1768829987029,0.0222002,93106.0,93091.0,0.010747]
[1768829987219,0.0222002,93105.0,93091.0,0.010747]
[1768829987419,0.0222002,93104.0,93091.0,0.010747]
[1768829987719,0.010746,93108.0,93091.0,0.010747]
[1768829987917,0.02219981,93107.0,93091.0,0.010747]
[1768829988116,0.02219981,93106.0,93091.0,0.010747]
[1768829988326,0.02219981,93105.0,93091.0,0.010747]
[1768829988521,0.02219981,93104.0,93091.0,0.010747]
[1768829988726,0.010746,93108.0,93091.0,0.010747]
[1768829988914,0.02220039,93107.0,93091.0,0.010747]
[1768829989115,0.02220039,93106.0,93091.0,0.010747]
[1768829989328,0.02220039,93105.0,93091.0,0.06147712]
[1768829989520,0.02220039,93104.0,93091.0,0.06147712]
[1768829989715,0.010746,93108.0,93091.0,0.010747]
[1768829989920,0.02220015,93107.0,93092.0,0.010747]
[1768829990122,0.02220015,93106.0,93093.0,0.010747]
[1768829990321,0.02220015,93105.0,93093.0,0.010747]
[1768829990520,0.02220015,93104.0,93093.0,0.010747]
[1768829990729,0.010745,93110.0,93093.0,0.010747]
[1768829990921,0.02219994,93108.0,93093.0,0.010747]
[1768829991116,0.02219994,93107.0,93093.0,0.010747]
[1768829991322,0.02219994,93106.0,93093.0,0.010747]
[1768829991633,0.02219994,93105.0,93093.0,0.0617013]
[1768829991824,0.02219994,93104.0,93093.0,0.0617013]
[1768829992024,0.01310883,93109.0,93093.0,0.0617013]
[1768829992222,0.11809437,93108.0,93093.0,0.0617013]
[1768829992423,0.02219975,93107.0,93093.0,0.0617013]
[1768829992722,0.02219975,93106.0,93093.0,0.0617013]
[1768829992924,0.02219975,93105.0,93093.0,0.010747]
[1768829993123,0.02219975,93104.0,93093.0,0.010747]
[1768829993329,0.00236283,93109.0,93095.0,0.010747]
[1768829993623,0.1152684,93108.0,93095.0,0.010747]
[1768829993930,0.02219934,93107.0,93095.0,0.010747]
[1768829994128,0.02219934,93107.0,93087.0,0.15601754]
[1768829994323,0.02219934,93107.0,93088.0,0.06339358]
[1768829994324,0.03294534,93107.0,93088.0,0.06339358]
[1768829994523,0.02219934,93106.0,93088.0,0.06339358]
[1768829994722,0.02219934,93105.0,93088.0,0.06339358]
[1768829994932,0.010746,93107.0,93088.0,0.06339358]
[1768829995127,0.02219892,93106.0,93088.0,0.06339358]
[1768829995329,0.02219892,93105.0,93088.0,0.06339358]
[1768829995531,0.010746,93107.0,93091.0,0.010748]
[1768829995726,0.02219877,93106.0,93090.0,0.010748]
[1768829995928,0.02219877,93105.0,93090.0,0.010748]
[1768829996126,0.09306906,93108.0,93092.0,0.010747]
[1768829996330,0.02219823,93107.0,93092.0,0.010747]
[1768829996626,0.02219823,93106.0,93092.0,0.010747]
[1768829996825,0.010746,93108.0,93092.0,0.010747]
[1768829997025,0.02219827,93107.0,93092.0,0.010747]
[1768829997227,0.02219827,93106.0,93092.0,0.010747]
[1768829997428,0.010746,93108.0,93092.0,0.010747]
[1768829997632,0.02219779,93107.0,93092.0,0.010747]
[1768829997822,0.02219779,93106.0,93088.0,0.06339358]
[1768829998026,0.00236283,93109.0,93088.0,0.06339358]
[1768829998227,0.0221978,93108.0,93088.0,0.06339358]
[1768829998536,0.0221978,93107.0,93096.0,0.010747]
[1768829998738,0.00236283,93109.0,93096.0,0.010747]
[1768829999032,0.02219729,93108.0,93096.0,0.010747]
[1768829999234,0.02219729,93107.0,93097.0,0.010747]
[1768829999425,0.00236283,93109.0,93097.0,0.010747]
[1768829999625,0.02219684,93108.0,93097.0,0.010747]
[1768829999825,0.02219684,93107.0,93097.0,0.010747]
[1768830000029,0.00236283,93109.0,93097.0,0.010747]
[1768830000235,0.02219684,93108.0,93097.0,0.010747]
[1768830000535,0.02219684,93107.0,93097.0,0.010747]
[1768830000735,0.00236283,93109.0,93097.0,0.010747]
[1768830000936,0.02219652,93108.0,93097.0,0.010747]
[1768830001237,0.00236283,93109.0,93097.0,0.010747]
[1768830001238,0.02219652,93107.0,93097.0,0.010747]
[1768830001435,0.00236283,93109.0,93097.0,0.010747]
[1768830001635,0.0221963,93108.0,93097.0,0.010747]
[1768830001828,0.0221963,93107.0,93095.0,0.010747]
[1768830002028,0.01310883,93109.0,93095.0,0.010747]
[1768830002229,0.02219629,93108.0,93092.0,0.06399885]
[1768830002433,0.09306906,93116.0,93105.0,0.010746]
[1768830002733,0.00236233,93129.0,93102.0,0.16078259]
[1768830002734,0.010744,93125.0,93102.0,0.16078259]
[1768830003033,0.00236233,93129.0,93118.0,0.010744]
[1768830003736,0.00236233,93129.0,93111.0,0.06406259]
[1768830003938,0.00236233,93129.0,93117.0,0.010745]
[1768830004137,0.09543099,93144.0,93126.0,0.010743]
[1768830004322,0.09543099,93144.0,93130.0,0.010743]
[1768830004323,0.00236193,93144.0,93130.0,0.010743]
[1768830005236,0.00236193,93144.0,93132.0,0.010743]
[1768830005424,0.01310282,93149.0,93132.0,0.02136975]
[1768830005737,0.010741,93147.0,93132.0,0.01062675]
[1768830005925,0.00236182,93149.0,93128.0,0.16104401]
[1768830006429,0.010743,93133.0,93129.0,6.8e-07]
[1768830006636,0.010742,93136.0,93129.0,6.8e-07]
[1768830007439,0.09306906,93133.0,93126.0,0.09672]
[1768830007733,0.09306906,93133.0,93119.0,0.10737563]
[1768830007934,0.010742,93137.0,93120.0,0.09672]
[1768830009730,0.10381206,93135.0,93120.0,0.09672]
[1768830010030,0.10381206,93132.0,93120.0,0.09672]
[1768830010438,0.010743,93130.0,93120.0,0.09672]
[1768830010738,0.010744,93125.0,93114.0,0.00016113]
[1768830010939,0.10381306,93123.0,93114.0,0.00016113]
[1768830011131,0.09306906,93122.0,93114.0,0.00016113]
[1768830012128,0.010744,93126.0,93114.0,0.00016113]
[1768830012328,0.010744,93124.0,93114.0,0.00016113]
[1768830013343,0.14845396,93127.0,93114.0,0.00016113]
[1768830014046,0.010744,93119.0,93114.0,0.00016113]
[1768830014242,0.010744,93119.0,93110.0,0.09672]
[1768830014744,0.010744,93122.0,93110.0,0.09672]
[1768830015543,0.010744,93122.0,93110.0,0.09472]
[1768830015744,0.010744,93120.0,93110.0,0.09472]
[1768830016631,0.10381306,93123.0,93110.0,0.09472]
[1768830016834,0.09306906,93123.0,93110.0,0.09472]
[1768830017640,0.05189796,93127.0,93110.0,0.09472]
[1768830018437,0.010744,93124.0,93110.0,0.09472]
[1768830019534,0.010744,93127.0,93110.0,0.36606098]
[1768830019843,0.010744,93125.0,93110.0,0.36606098]
[1768830020144,0.00016113,93130.0,93113.0,0.10198802]
[1768830020645,0.01090413,93130.0,93113.0,0.10198802]
[1768830021046,0.01090413,93130.0,93115.0,0.010745]
[1768830021447,0.01090413,93130.0,93120.0,0.18009796]
[1768830021742,1.3e-07,93130.0,93126.0,0.010743]
[1768830022054,0.010741,93147.0,93130.0,0.10198602]
[1768830022741,0.09908182,93149.0,93130.0,0.09124302]
[1768830023144,0.1579216,93149.0,93130.0,0.09124302]
[1768830023451,0.1579216,93149.0,93121.0,0.09672]
[1768830023452,0.05883978,93146.0,93122.0,0.09681407]
[1768830023746,0.05883978,93146.0,93124.0,0.00236244]
[1768830024348,0.010742,93139.0,93124.0,0.00236244]
[1768830024847,0.010742,93137.0,93124.0,0.00236244]
[1768830025147,0.05883978,93138.0,93124.0,0.00236244]
[1768830025345,0.15048907,93138.0,93124.0,0.00236244]
[1768830025746,0.010742,93136.0,93124.0,0.00236244]
[1768830029454,0.09164929,93138.0,93124.0,0.00236244]
[1768830030841,0.010742,93139.0,93124.0,0.00236244]
[1768830031154,0.010742,93143.0,93129.0,0.18009796]
[1768830031849,0.010742,93140.0,93129.0,0.18009796]
[1768830033453,0.010742,93140.0,93125.0,0.03856618]
[1768830033644,0.05883978,93145.0,93125.0,0.03856618]
[1768830033957,0.010742,93140.0,93124.0,0.13774269]
[1768830034146,0.010742,93140.0,93125.0,0.03856618]
[1768830035157,0.05883978,93145.0,93126.0,0.09681407]
[1768830035355,0.15048907,93145.0,93126.0,0.09681407]
[1768830035746,0.05883978,93144.0,93130.0,0.18009796]
[1768830036150,0.010742,93137.0,93130.0,0.18009796]
[1768830036343,0.05883978,93144.0,93127.0,0.18009796]
[1768830036548,0.05883978,93137.0,93124.0,0.04092862]
[1768830036757,0.010743,93135.0,93124.0,0.04092862]
[1768830036950,0.010743,93133.0,93124.0,0.04092862]
[1768830037155,0.010742,93136.0,93124.0,0.04092862]
[1768830038050,0.010743,93135.0,93124.0,0.04092862]
[1768830038354,0.010741,93145.0,93124.0,0.05167262]
[1768830038355,0.010742,93141.0,93124.0,0.05167262]
[1768830038658,0.010742,93141.0,93125.0,0.09681407]
[1768830038857,0.010742,93141.0,93130.0,0.18009796]
[1768830040043,0.010742,93141.0,93125.0,0.14612425]
[1768830040555,0.05826531,93145.0,93125.0,0.13538025]
[1768830040755,0.010742,93140.0,93125.0,0.13538025]
[1768830041559,0.010742,93142.0,93125.0,0.14612425]
[1768830042059,0.010742,93142.0,93126.0,0.010743]
[1768830042247,0.010742,93142.0,93127.0,0.010743]
[1768830044157,0.010742,93142.0,93128.0,0.09872491]
[1768830044366,0.010741,93150.0,93134.0,0.10946791]
[1768830044560,0.010741,93150.0,93135.0,0.010742]
[1768830044758,0.18009796,93160.0,93134.0,0.09872491]
[1768830044759,0.010739,93162.0,93149.0,0.04154067]
[1768830044954,0.010739,93165.0,93151.0,0.04154067]
[1768830045152,0.10899324,93168.0,93151.0,0.04154067]
[1768830045461,0.00236131,93169.0,93156.0,0.01074]
[1768830045652,0.01236131,93169.0,93159.0,0.18009796]
[1768830045956,0.09825424,93179.0,93159.0,0.18009796]
[1768830046163,0.13825424,93179.0,93159.0,0.18009796]
[1768830046356,0.010738,93172.0,93159.0,0.18009796]
[1768830046859,0.010738,93175.0,93159.0,0.18009796]
[1768830047363,0.010738,93173.0,93159.0,0.22590776]
[1768830048659,0.010738,93173.0,93160.0,0.04608884]
[1768830048856,0.010739,93170.0,93160.0,0.04608884]
[1768830049060,0.010739,93169.0,93157.0,0.04608884]
[1768830049650,0.010739,93169.0,93156.0,0.09668]
[1768830049651,0.010739,93162.0,93156.0,0.09668]
[1768830049864,0.010739,93165.0,93156.0,0.09668]
[1768830050063,0.010739,93170.0,93158.0,0.04587807]
[1768830050257,0.010739,93168.0,93158.0,0.02587807]
[1768830050563,0.010739,93168.0,93157.0,0.09872491]
[1768830050864,0.010738,93171.0,93157.0,0.09872491]
[1768830051362,0.010738,93172.0,93157.0,0.09872491]
[1768830051568,0.010738,93172.0,93160.0,0.18009796]
[1768830051753,0.06900331,93176.0,93157.0,0.09872491]
[1768830052064,0.010738,93176.0,93160.0,0.18009796]
[1768830052266,0.010738,93177.0,93161.0,0.02688097]
[1768830052450,0.010737,93180.0,93167.0,0.18009796]
[1768830052656,0.01309792,93184.0,93170.0,0.18009796]
[1768830052860,0.04309792,93184.0,93170.0,0.18009796]
[1768830053555,0.010737,93182.0,93170.0,0.18009796]
[1768830054261,0.00236092,93184.0,93171.0,0.1172896]
[1768830054462,0.010735,93203.0,93188.0,0.02523773]
[1768830054654,0.050735,93203.0,93190.0,0.18009796]
[1768830054960,0.04,93203.0,93190.0,0.18009796]
[1768830055165,0.010735,93201.0,93190.0,0.18009796]
[1768830055460,0.05956961,93197.0,93191.0,0.09668]
[1768830055650,0.07030461,93197.0,93190.0,0.09001059]
[1768830055851,0.010736,93195.0,93180.0,0.28739927]
[1768830056062,0.010736,93195.0,93181.0,0.09668]
[1768830056259,0.010736,93195.0,93186.0,0.02551482]
[1768830056455,0.05956961,93199.0,93179.0,0.0900074]
[1768830056760,0.05956961,93193.0,93180.0,0.09668]
[1768830056959,0.05956961,93192.0,93181.0,0.09668]
[1768830057161,0.05956961,93192.0,93170.0,0.2287435]
[1768830057360,0.010737,93186.0,93171.0,0.14532554]
[1768830057667,0.010736,93189.0,93171.0,0.14532554]
[1768830057863,0.05956961,93192.0,93171.0,0.14532554]
[1768830058063,0.010737,93185.0,93171.0,0.14532554]
[1768830058259,0.05956961,93189.0,93170.0,0.0900074]
[1768830058568,0.010736,93196.0,93171.0,0.09668]
[1768830058569,0.010738,93179.0,93171.0,0.09668]
[1768830058774,0.09938298,93181.0,93171.0,0.09668]
[1768830059071,0.010738,93177.0,93171.0,0.09668]
[1768830059367,0.09938298,93181.0,93171.0,0.09668]
[1768830059368,0.010738,93176.0,93171.0,0.09668]
[1768830059553,0.010738,93176.0,93167.0,0.18009796]
[1768830059758,0.010738,93176.0,93160.0,0.3181764]
[1768830059964,0.010738,93176.0,93161.0,0.09668]
[1768830060271,0.010738,93174.0,93161.0,0.09668]
[1768830060468,0.00016095,93178.0,93160.0,0.13807844]
[1768830060658,0.00016095,93178.0,93161.0,0.09668]
[1768830060659,0.010738,93172.0,93161.0,0.09668]
[1768830060859,0.010738,93175.0,93161.0,0.09668]
[1768830061172,0.010738,93171.0,93156.0,0.04867255]
[1768830061362,0.05973056,93178.0,93160.0,0.18009796]
[1768830061961,0.05973056,93178.0,93161.0,0.09668]
[1768830061962,0.00016095,93178.0,93161.0,0.09668]
[1768830062963,0.05973056,93178.0,93162.0,0.09664]
[1768830064069,0.05973056,93178.0,93160.0,0.18009796]
[1768830064264,0.05956961,93176.0,93161.0,0.09664]
[1768830064877,0.09938298,93177.0,93161.0,0.09664]
[1768830065874,0.00016095,93178.0,93161.0,0.09664]
[1768830066174,0.00016095,93178.0,93161.0,0.107379]
[1768830067269,0.00016095,93178.0,93161.0,0.09664]
[1768830067675,0.00016095,93178.0,93161.0,0.107379]
[1768830067875,0.00016095,93178.0,93162.0,0.010739]
[1768830068076,0.00016095,93178.0,93164.0,0.010739]
[1768830068275,0.00016095,93178.0,93164.0,0.14903788]
[1768830068466,0.00016095,93178.0,93166.0,0.010739]
[1768830069876,0.00016095,93178.0,93164.0,0.13829888]
[1768830070176,0.00016095,93178.0,93165.0,0.04831846]
[1768830070969,0.01089895,93178.0,93165.0,0.04831846]
[1768830071372,0.00016095,93178.0,93165.0,0.04831846]
[1768830074096,0.01089895,93178.0,93164.0,0.0900074]
[1768830074279,0.00016095,93178.0,93164.0,0.0900074]
[1768830075180,0.010738,93177.0,93164.0,0.13734968]
[1768830077791,0.00016095,93178.0,93164.0,0.13734968]
[1768830078380,0.00016095,93178.0,93165.0,0.04666734]
[1768830078581,0.00016095,93178.0,93165.0,0.13667474]
[1768830079687,0.01089895,93178.0,93165.0,0.13667474]
[1768830081093,0.010738,93176.0,93165.0,0.0900074]
[1768830081392,0.010738,93176.0,93161.0,0.17848576]
[1768830081695,0.010738,93176.0,93159.0,0.0900074]
[1768830081696,0.010738,93173.0,93160.0,0.03856618]
[1768830081895,0.010738,93173.0,93159.0,0.12857358]
[1768830082895,0.010738,93173.0,93153.0,0.01074]
[1768830082896,0.010739,93164.0,93144.0,0.0443855]
[1768830083092,0.010739,93164.0,93145.0,0.04202357]
[1768830083393,0.010739,93164.0,93146.0,0.04202357]
[1768830083588,0.010739,93164.0,93147.0,0.04188213]
[1768830083793,0.06596615,93171.0,93150.0,0.04188213]
[1768830083991,0.06596615,93171.0,93152.0,0.04188213]
[1768830084590,0.010738,93171.0,93153.0,0.0553505]
[1768830084796,0.010738,93171.0,93153.0,0.0446105]
[1768830085493,0.09664,93170.0,93159.0,0.09471515]
[1768830085794,0.09664,93173.0,93163.0,0.04445696]
[1768830085994,0.09664,93173.0,93158.0,0.04445696]
[1768830086388,0.09664,93173.0,93160.0,0.04445696]
[1768830087396,0.010738,93172.0,93157.0,0.04989482]
[1768830088187,0.010738,93170.0,93157.0,0.04989482]
[1768830088485,0.09664,93173.0,93145.0,0.04908115]
[1768830088486,0.15998279,93169.0,93145.0,0.04908115]
[1768830088682,0.15998279,93162.0,93144.0,0.00236193]
[1768830088986,0.01074,93161.0,93144.0,0.00236193]
[1768830089797,0.01074,93159.0,93144.0,0.00236193]
[1768830090889,0.17072179,93162.0,93144.0,0.00236193]
[1768830091689,0.01074,93160.0,93144.0,0.00236193]
[1768830091895,0.15998279,93162.0,93144.0,0.00236193]
[1768830092497,0.01074,93161.0,93144.0,0.00236193]
[1768830094391,0.15998279,93162.0,93144.0,0.01310293]
[1768830097806,0.15998279,93162.0,93144.0,0.00236193]
[1768830097994,0.01074,93158.0,93144.0,0.00236193]
[1768830098791,0.01074,93156.0,93144.0,0.00236193]
[1768830099100,0.15998279,93150.0,93135.0,0.09668]
[1768830099492,0.09401664,93150.0,93135.0,0.09668]
[1768830099691,0.09401664,93150.0,93134.0,0.107423]
[1768830099898,0.09401664,93150.0,93134.0,0.09668]
[1768830102202,0.00016104,93152.0,93135.0,0.05279979]
[1768830102404,0.00016104,93152.0,93139.0,0.010742]
[1768830102609,0.00016104,93152.0,93140.0,0.010742]
[1768830102907,0.16643002,93158.0,93140.0,0.010742]
[1768830104608,0.16643002,93158.0,93141.0,0.010742]
[1768830105506,0.16643002,93158.0,93136.0,0.00016104]
[1768830105713,0.16643002,93158.0,93135.0,0.09807142]
[1768830106007,0.16643002,93158.0,93141.0,0.010742]
[1768830106404,0.16643002,93158.0,93142.0,0.010742]
[1768830108202,0.16643002,93158.0,93143.0,0.010741]
[1768830109207,0.16643002,93158.0,93140.0,0.010742]
[1768830109398,0.07058237,93156.0,93140.0,0.010742]
[1768830109603,0.16863029,93156.0,93140.0,0.010742]
[1768830109798,0.07058237,93155.0,93140.0,0.010742]
[1768830110913,0.17937029,93155.0,93138.0,0.010742]
[1768830111714,0.16863029,93155.0,93138.0,0.010742]
[1768830112013,0.16863029,93155.0,93135.0,0.10392529]
[1768830113509,0.07064321,93153.0,93141.0,0.010742]
[1768830113710,0.07064321,93153.0,93142.0,0.010742]
[1768830113906,0.09719176,93154.0,93142.0,0.010742]
[1768830114806,0.09719176,93154.0,93137.0,0.01654545]
[1768830115007,0.09668,93166.0,93134.0,0.1497923]
[1768830115008,0.09668,93164.0,93146.0,0.1027135]
[1768830115212,0.09668,93164.0,93152.0,0.00580345]
[1768830115413,0.16783497,93171.0,93159.0,0.01074]
[1768830115615,0.0224256,93170.0,93159.0,0.01074]
[1768830115915,0.0224256,93169.0,93159.0,0.01074]
[1768830116105,0.16783497,93171.0,93157.0,0.01074]
[1768830116305,0.010739,93169.0,93155.0,0.01074]
[1768830116506,0.02242556,93168.0,93155.0,0.01074]
[1768830116705,0.010739,93169.0,93155.0,0.01074]
[1768830117911,0.16783497,93171.0,93155.0,0.01074]
[1768830118109,0.02243237,93170.0,93155.0,0.01074]
[1768830118309,0.0224365,93169.0,93155.0,0.01074]
[1768830118511,0.16783497,93171.0,93155.0,0.01074]
[1768830118708,0.0224365,93170.0,93155.0,0.01074]
[1768830118913,0.0224365,93169.0,93155.0,0.01074]
[1768830119217,0.16783497,93171.0,93155.0,0.00837818]
[1768830119516,0.02243651,93170.0,93155.0,0.01074]
[1768830119721,0.02243651,93169.0,93154.0,0.00016104]
[1768830119922,0.16783497,93171.0,93154.0,0.00016104]
[1768830120218,0.09668,93172.0,93158.0,0.01074]
[1768830120520,0.02243586,93171.0,93158.0,0.01074]
[1768830120714,0.09668,93172.0,93158.0,0.01074]
[1768830120915,0.09668,93172.0,93155.0,0.01074]
[1768830120916,0.02243521,93171.0,93155.0,0.01074]
[1768830121224,0.16732321,93172.0,93155.0,0.01074]
[1768830121408,0.02243473,93171.0,93155.0,0.01074]
[1768830121609,0.07064321,93171.0,93155.0,0.01074]
[1768830122122,0.07064321,93170.0,93155.0,0.01074]
[1768830122821,0.07064321,93170.0,93157.0,0.01074]
[1768830123021,0.07064321,93170.0,93159.0,0.01074]
[1768830124210,0.07064321,93170.0,93156.0,0.01074]
[1768830124521,0.07064321,93170.0,93157.0,0.01074]
[1768830124923,0.07064321,93170.0,93159.0,0.01074]
[1768830126222,0.07064321,93170.0,93160.0,0.01074]
[1768830126623,0.107418,93175.0,93162.0,0.010739]
[1768830126624,0.09668,93175.0,93162.0,0.010739]
[1768830126920,0.09668,93175.0,93156.0,0.01394424]
[1768830126921,0.09668,93175.0,93157.0,0.01394424]
[1768830127110,0.010738,93173.0,93157.0,0.02468424]
[1768830127306,0.16783497,93172.0,93157.0,0.01074]
[1768830128011,0.07064321,93171.0,93157.0,0.01074]
[1768830128221,0.07064321,93171.0,93159.0,0.01074]
[1768830131225,0.07064321,93169.0,93158.0,0.01074]
[1768830131419,0.07064321,93168.0,93158.0,0.01074]
[1768830132722,0.07064321,93167.0,93155.0,0.01074]
[1768830133125,0.07064321,93167.0,93157.0,0.01074]
[1768830133526,0.09719176,93168.0,93157.0,0.01074]
[1768830133926,0.09719176,93168.0,93158.0,0.01074]
[1768830134828,0.09719176,93168.0,93159.0,0.01074]
[1768830135128,0.09719176,93168.0,93163.0,0.010739]
[1768830135827,0.07064321,93172.0,93163.0,0.010739]
[1768830136331,0.16783497,93172.0,93163.0,0.010739]
[1768830137335,0.09668,93175.0,93166.0,0.010739]
[1768830137628,0.09719176,93178.0,93160.0,0.01220261]
[1768830137825,0.16783497,93178.0,93171.0,0.010738]
[1768830138416,0.16783497,93178.0,93160.0,0.01220261]
[1768830139215,0.16783497,93178.0,93167.0,0.010739]
[1768830139417,0.16783497,93178.0,93169.0,0.010739]
[1768830139624,0.17857297,93177.0,93157.0,0.01206928]
[1768830139828,0.17857297,93174.0,93160.0,0.01074]
[1768830140032,0.07064321,93172.0,93160.0,0.01074]
[1768830140933,0.07064321,93172.0,93162.0,0.010739]
[1768830141233,0.07064321,93172.0,93164.0,0.00236143]
[1768830143134,0.07064321,93172.0,93164.0,0.01310043]
[1768830143534,0.07064321,93172.0,93165.0,0.010739]
[1768830144132,0.07064321,93172.0,93167.0,0.010739]
[1768830144333,0.16768669,93172.0,93167.0,0.010739]
[1768830146132,6.9e-07,93172.0,93169.0,0.010739]
[1768830146330,0.09668,93182.0,93172.0,0.010738]
[1768830147943,0.010737,93185.0,93172.0,0.010738]
[1768830148239,0.069411,93183.0,93172.0,0.010738]
[1768830148842,0.069411,93183.0,93170.0,0.17988689]
[1768830149045,0.069411,93182.0,93164.0,0.00236143]
[1768830149433,0.16645448,93181.0,93164.0,0.00236143]
[1768830149633,0.069411,93180.0,93164.0,0.00236143]
[1768830149833,0.069411,93180.0,93167.0,0.010739]
[1768830150434,0.069411,93168.0,93156.0,0.01074]
[1768830150639,0.069411,93164.0,93156.0,0.01868103]
[1768830150836,0.069411,93164.0,93157.0,0.01074]
[1768830151240,0.09704348,93165.0,93157.0,0.01074]
[1768830152548,0.16645448,93164.0,93154.0,0.01090104]
[1768830153046,0.16645448,93164.0,93156.0,0.01074]
[1768830154148,0.16645448,93164.0,93154.0,0.00016104]
[1768830154350,0.16645448,93168.0,93154.0,0.00016104]
[1768830155047,0.069411,93167.0,93154.0,0.00016104]
[1768830155441,0.16645448,93167.0,93156.0,0.01074]
[1768830155646,0.069411,93166.0,93154.0,0.01090104]
[1768830155837,0.16645448,93166.0,93154.0,0.00016104]
[1768830156936,0.069411,93165.0,93157.0,0.01074]
[1768830157137,0.069411,93164.0,93154.0,0.01090104]
[1768830157639,0.069411,93164.0,93156.0,0.01074]
[1768830160949,0.069411,93164.0,93154.0,0.00016104]
[1768830161148,0.069411,93164.0,93155.0,0.01074]
[1768830162641,0.069411,93164.0,93154.0,0.05793353]
[1768830163352,0.069411,93164.0,93155.0,0.01074]
[1768830163945,0.069411,93164.0,93154.0,0.00016104]
[1768830164144,0.1689613,93164.0,93154.0,0.00016104]
[1768830165242,0.08015,93164.0,93153.0,0.15441249]
[1768830165444,0.0733417,93157.0,93148.0,0.09664]
[1768830168747,0.0733417,93157.0,93149.0,0.010741]
[1768830171159,0.0733417,93157.0,93148.0,0.09664]
[1768830175151,0.08187514,93155.0,93140.0,0.17988689]
[1768830176051,0.08187514,93155.0,93145.0,0.010741]
[1768830176256,0.08187514,93155.0,93146.0,0.010741]
[1768830177464,0.09261514,93155.0,93142.0,0.010742]
[1768830177762,0.08187514,93155.0,93143.0,0.010741]
[1768830179762,0.08187514,93155.0,93145.0,0.010741]
[1768830180262,0.08187514,93155.0,93140.0,0.17988689]
[1768830180663,0.09261614,93151.0,93140.0,0.17988689]
[1768830181063,0.09261614,93151.0,93139.0,0.107422]
[1768830181064,0.08187514,93150.0,93139.0,0.107422]
[1768830181264,0.08187514,93150.0,93140.0,0.17988689]
[1768830181454,0.10360264,93151.0,93140.0,0.17988689]
[1768830181850,0.10360264,93151.0,93139.0,0.09668]
[1768830181851,0.08187514,93148.0,93139.0,0.09668]
[1768830182259,0.08187514,93147.0,93139.0,0.09668]
[1768830182460,0.08187514,93151.0,93139.0,0.09668]
[1768830183365,0.08187514,93144.0,93130.0,0.11808727]
[1768830183561,0.08187514,93143.0,93130.0,0.28723116]
[1768830183767,0.08187514,93143.0,93131.0,0.10735949]
[1768830183969,0.09286164,93144.0,93131.0,0.10735949]
[1768830184159,0.09286164,93144.0,93134.0,0.010743]
[1768830184661,0.08203618,93146.0,93131.0,0.010743]
[1768830185362,0.010741,93145.0,93131.0,0.010743]
[1768830185670,0.010741,93145.0,93130.0,0.28723116]
[1768830186061,0.010741,93145.0,93131.0,0.11810998]
[1768830186773,0.08203618,93146.0,93131.0,0.10736698]
[1768830186972,0.08203618,93146.0,93137.0,0.010742]
[1768830187771,0.08203618,93146.0,93134.0,0.010743]
[1768830188271,0.08203618,93146.0,93131.0,0.10736352]
[1768830188766,0.08203618,93146.0,93134.0,0.010743]
[1768830189165,0.09668,93163.0,93145.0,0.07658467]
[1768830189363,0.09668,93163.0,93154.0,0.01074]
[1768830189564,0.09668,93169.0,93156.0,0.01074]
[1768830189764,0.010739,93169.0,93153.0,0.01074]
[1768830189961,0.09668,93170.0,93154.0,0.01074]
[1768830190164,0.09668,93170.0,93150.0,0.17988689]
[1768830190165,0.03374638,93169.0,93155.0,0.01074]
[1768830190464,0.010739,93169.0,93155.0,0.01074]
[1768830190874,0.010739,93169.0,93152.0,0.01074]
[1768830191070,0.010739,93167.0,93152.0,0.01074]
[1768830191265,0.08187514,93169.0,93150.0,0.17988689]
[1768830191574,0.09261414,93169.0,93153.0,0.01074]
[1768830193070,0.08187514,93168.0,93153.0,0.01074]
[1768830193277,0.17473678,93168.0,93153.0,0.01074]
[1768830193770,0.17473678,93168.0,93150.0,0.17988689]
[1768830193972,0.17473678,93168.0,93156.0,0.01074]
[1768830194163,0.17473678,93168.0,93153.0,0.01074]
[1768830195967,0.08187514,93167.0,93153.0,0.01074]
[1768830196376,0.09261414,93167.0,93150.0,0.17988689]
[1768830196880,0.08187514,93167.0,93150.0,0.17988689]
[1768830197276,0.08187514,93167.0,93156.0,0.01074]
[1768830197670,0.09286164,93168.0,93156.0,0.01074]
[1768830199981,0.09286164,93168.0,93150.0,0.17988689]